[Event "Israel-ch Youth U8-18 2024"]
[Site "Kfar Saba"]
[Date "2024.04.17"]
[Round "2.3"]
[White "Michaeli, Omri"]
[Black "Levin, Guy"]
[Result "0-1"]
[ECO "B51"]
[WhiteElo "2031"]
[BlackElo "2451"]
[Annotator "TA"]
[PlyCount "162"]
[EventDate "2024.04.10"]
[EventType "swiss"]
[EventCountry "ISR"]
[SourceTitle "playchess.com"]
[Source "ChessBase"]
[SourceQuality "1"]
[TimeControl "5400+30"]

{[%evp 16,162,21,27,25,10,8,31,27,36,35,33,118,104,80,99,112,47,45,15,19,19,97,97,122,106,99,107,139,141,268,89,29993,65,67,71,74,4,10,-50,-53,-155,-97,-107,-112,-127,-140,-140,-122,-148,-157,-122,-121,-228,-228,-239,-208,-247,-215,-406,-246,-436,-436,-428,-314,-586,-586,-586,-586,-586,-586,-586,-586,-579,-572,-572,-572,-572,-564,-564,-557,-572,-572,-564,-564,-557,-546,-546,-531,-517,-517,-517,-502,-495,-495,-495,-481,-419,-419,-2156,-419,-2048,-364,-1995,-364,-1740,-164,-1470,-1327,-29972,-29973,-29974,-29975,-29975,-29976,-29975,-29975,-29975,-29967,-29969,-29970,-29969,-29970,-29971,-29972,-29971,-29969,-29968,-29969,-29969,-29970,-29971,-29972,-29971,-29973,-29973,-29974,-29974,-29975,-29985,-29986,-29985,-29986,-29986,-29987,-29989,-29989,-29990,-29991]} 1. e4 {[%emt 0:00:05]} c5 {[%emt 0:00:24]} 2. Nf3 {[%emt 0:00:07]} d6 {[%emt 0:00:05]} 3. Bb5+ {[%emt 0:00:07]} Nc6 {[%emt 0:01:05]} 4. O-O {[%emt 0:00:45]} Bd7 {[%emt 0:00:06]} 5. Re1 {[%emt 0:00:09]} a6 {[%emt 0:00:19]} 6. Bf1 {[%emt 0:00:12]} Nf6 {[%emt 0:00:06]} 7. c3 {[%emt 0:00:22]} Bg4 {[%emt 0:00:05]} 8. d4 {[%emt 0:03:11]} cxd4 {[%emt 0:00:44]} 9. cxd4 {[%emt 0:00:57]} e5 {[%emt 0:00:06]} 10. d5 {[%emt 0:00:08]} Nd4 {[%emt 0:00:05]} 11. Be3 {[%emt 0:00:07]} Nxf3+ {[%emt 0:00:07] White is slightly better.} 12. gxf3 {[%emt 0:00:05]} Bd7 {[%emt 0:00:07]} 13. Nd2 {[%emt 0:03:01]} Rb8 {[%emt 0:33:18]} (13... Be7 $14) 14. a4 $1 $16 {[%emt 0:04:30]} Be7 {[%emt 0:01:17]} 15. Nc4 {[%emt 0:10:49]} b6 {[%emt 0:00:30]} 16. f4 {[%emt 0:11:21]} ({White should try} 16. a5 $16 {[%cal Re3b6]} bxa5 17. Nxa5 (17. Rxa5 O-O $14)) 16... Ng4 $14 {[%emt 0:14:05]} 17. fxe5 {[%emt 0:03:59]} dxe5 {[%emt 0:01:31]} 18. Bh3 {[%emt 0:04:56]} Nxe3 {[%emt 0:09:00]} (18... h5 $1 $11) 19. Rxe3 $16 {[%emt 0:00:57]} Bc5 {[%emt 0:04:51]} 20. Bxd7+ {[%emt 0:13:53]} Qxd7 {[%emt 0:00:02] [#]} 21. Qh5 $1 {[%emt 0:01:19]} Qc7 {[%emt 0:13:17]} (21... Qe7 22. Rg3) 22. Rg3 {[%emt 0:09:53]} (22. Qxe5+ Qxe5 23. Nxe5 Bxe3 24. fxe3 f6 $11) 22... O-O {[%emt 0:00:41]} (22... g6 $16 {might work better.} 23. Qxe5+ Qxe5 24. Nxe5 Bd6) 23. d6 $2 {[%emt 0:07:43]} (23. Qxe5 $6 Qxe5 24. Nxe5 Bd6 $16) (23. Nxe5 g6 (23... f5 24. Nd3 $15) 24. Kh1 Bxf2 $15) (23. b4 $1 $18 {[%cal Og3g7] is the precise move to win. Strongly threatening Rxg7+!} Bxb4 (23... Bxf2+ 24. Kxf2 g6 25. Ne3 $18) 24. d6 (24. Qxe5 Qxe5 25. Nxe5 Bd6 $14) (24. Nxe5 g6 $11)) 23... Qc6 $2 {[%emt 0:04:15][%mdl 8192]} (23... Qb7 $16) 24. Nxe5 $2 {[%emt 0:08:25]} (24. Qxe5 g6 $14) (24. Qh6 $1 {mates} Bxf2+ 25. Kxf2 g6 26. Rh3 (26. Nxe5 Qc5+ 27. Kf1 Qxe5 $11) 26... Qc5+ 27. Kg2 Qf2+ 28. Kxf2 Rfd8 29. Qxh7+ Kf8 30. Qh8#) 24... Qxd6 $14 {[%emt 0:03:10] Hoping for ...g6. Black is weak on the light squares} 25. Rd1 {[%emt 0:00:47]} Qf6 {[%emt 0:03:09]} 26. Ng4 {[%emt 0:00:27]} (26. Rf3 $1 $16 {[%cal Rf3f6]} Qe6 27. Nd7) 26... Qf4 $11 {[%emt 0:02:54][%cal Og7g6] [#] And now ...g6! would win.} 27. Rf3 {[%emt 0:05:17]} Qxe4 $15 {[%emt 0:01:11][%cal Of7f5]} (27... Qxf3 $2 28. Nh6+ gxh6 29. Qxf3 $18) 28. Rd5 {[%emt 0:01:57] [#]} Qg6 {[%emt 0:01:33]} (28... Qxf3 29. Nh6+ gxh6 30. Qxf3 $18) (28... f6 $142 $1 {[%cal Og7g6] Threatens to win with ...g6!} 29. Qf5 Qxf5 (29... Qxa4 $2 30. Rh3 $18) 30. Rdxf5 a5) 29. Qxg6 {[%emt 0:05:45]} fxg6 {[%emt 0:00:02]} (29... hxg6 $6 30. Ne5 $11) 30. Rxf8+ {[%emt 0:00:18]} Rxf8 $17 {[%emt 0:00:01][%mdl 4096] Endgame. KRB-KRN} 31. a5 {[%emt 0:00:18][%cal Ob2b4]} Rf4 {[%emt 0:01:44]} 32. Ne3 {[%emt 0:02:42]} Rb4 {[%emt 0:00:33]} 33. Rd8+ {[%emt 0:00:54]} Kf7 {[%emt 0:00:02]} 34. Ra8 {[%emt 0:00:01]} (34. axb6 $17 {was necessary.} Bxb6 (34... Rxb2 35. Rd7+ Ke6 36. Rxg7 $17) 35. Ra8) 34... bxa5 $19 {[%emt 0:02:23]} (34... Rxb2 35. Rxa6 bxa5 36. Rxa5 Bxe3 37. fxe3 $17) 35. Rxa6 {[%emt 0:00:08]} a4 {[%emt 0:00:02][%cal Oc5e3]} ({Don't play} 35... Rxb2 36. Rxa5 Bxe3 37. fxe3 $17) 36. Ra5 {[%emt 0:01:43]} Bd4 {[%emt 0:00:44]} 37. Nc2 $2 {[%emt 0:00:57] [#]} (37. Nd1) 37... Bxf2+ $1 {[%emt 0:00:51][%mdl 512]} 38. Kxf2 {[%emt 0:00:02]} Rxb2 {[%emt 0:00:06] KRN-KR} 39. Ra7+ {[%emt 0:00:43]} Kf6 {[%emt 0:00:35]} 40. Rxa4 $2 {[%emt 0:00:42]} (40. Ra6+ {was the only chance.} Ke7 41. Ra7+ Ke6 42. Ra6+ Kd7 43. Ra7+ Kc8 44. Ra8+ Kd7 (44... Kb7 45. Rxa4 Rxc2+ 46. Kg3 $17) 45. Ra7+ Kc6 46. Rxa4 Rxc2+ 47. Kg1) 40... Rxc2+ {[%emt 0:00:06] KR-KR} 41. Kg3 {[%emt 0:00:06]} Rc6 {[%emt 0:00:45] Wards off Ra6} 42. Rf4+ {[%emt 0:00:45]} Ke7 {[%emt 0:00:46]} 43. Kg4 {[%emt 0:00:40]} h6 {[%emt 0:00:32]} 44. Ra4 {[%emt 0:00:26]} Kf6 {[%emt 0:01:09]} 45. Rf4+ {[%emt 0:00:15] [#]} Ke6 $1 {[%emt 0:00:01]} 46. Re4+ {[%emt 0:00:23]} Kf7 {[%emt 0:00:06]} 47. Ra4 {[%emt 0:00:36]} g5 {[%emt 0:00:19]} 48. Rd4 {[%emt 0:00:50]} Kg6 {[%emt 0:00:19]} 49. Rd7 {[%emt 0:00:32]} Rf6 {[%emt 0:00:43]} 50. h3 {[%emt 0:00:28]} Rf4+ {[%emt 0:00:29]} 51. Kg3 {[%emt 0:00:02]} Rf7 {[%emt 0:00:06]} 52. Rd6+ {[%emt 0:00:25]} Kf5 {[%emt 0:00:05]} 53. Ra6 {[%emt 0:00:21]} Re7 {[%emt 0:00:24]} 54. Ra3 {[%emt 0:00:21]} Re4 {[%emt 0:00:17]} 55. Rf3+ {[%emt 0:00:31]} Kg6 {[%emt 0:00:10] White must now prevent ...Kh5.} 56. Ra3 {[%emt 0:00:08]} Kh5 {[%emt 0:00:06] ...g4 would now be deadly.} 57. Rb3 {[%emt 0:01:45]} (57. Ra5 $142 Kg6 58. Rd5) 57... Ra4 {[%emt 0:00:18]} (57... g4 $142 58. Rd3 gxh3 59. Kxh3 g5) 58. Rc3 {[%emt 0:00:08]} (58. Rb5 $142 Re4 59. Rb7) 58... Rb4 $2 {[%emt 0:00:12]} (58... g4 59. hxg4+ Rxg4+ 60. Kf3 Kh4) 59. Ra3 $2 {[%emt 0:00:01]} (59. Rc5) 59... Rc4 $2 {[%emt 0:00:07]} (59... g4 60. hxg4+ Rxg4+ 61. Kf3 Kh4) 60. Rb3 $2 {[%emt 0:00:05]} (60. Ra5) 60... g6 $2 {[%emt 0:00:04]} (60... g4 61. hxg4+ Rxg4+ 62. Kh2 Rc4) 61. Ra3 $2 {[%emt 0:00:26]} (61. Rb5) 61... g4 {[%emt 0:00:18]} 62. h4 {[%emt 0:00:45]} Rc5 {[%emt 0:00:07] Black mates.} 63. Rd3 {[%emt 0:01:42]} Rf5 {[%emt 0:00:06]} 64. Rd6 {[%emt 0:00:21]} Rf3+ {[%emt 0:00:12]} 65. Kg2 {[%emt 0:00:02]} Rh3 {[%emt 0:00:09]} 66. Ra6 {[%emt 0:00:58]} Rxh4 {[%emt 0:00:14]} 67. Ra5+ {[%emt 0:00:15]} g5 {[%emt 0:00:02]} 68. Ra6 {[%emt 0:00:18]} Rh3 {[%emt 0:00:07]} 69. Rb6 {[%emt 0:00:08]} Ra3 {[%emt 0:00:13]} 70. Rc6 {[%emt 0:00:01]} Ra8 {[%emt 0:00:44]} 71. Kg3 {[%emt 0:00:22]} Rf8 {[%emt 0:00:09]} 72. Ra6 {[%emt 0:00:07]} Rf3+ {[%emt 0:00:44]} 73. Kg2 {[%emt 0:00:07]} Rb3 {[%emt 0:00:06]} 74. Rc6 {[%emt 0:00:05]} g3 {[%emt 0:00:18]} 75. Ra6 {[%emt 0:00:41]} g4 {[%emt 0:03:17]} 76. Ra8 {[%emt 0:03:01]} Kh4 {[%emt 0:00:24]} 77. Ra4 {[%emt 0:00:33]} Rb2+ {[%emt 0:00:12]} 78. Kg1 {[%emt 0:00:19]} Kh3 {[%emt 0:00:08][%cal Rb2b1]} 79. Ra1 {[%emt 0:00:19]} Rb3 {[%emt 0:00:25]} 80. Kh1 {[%emt 0:00:57]} g2+ {[%emt 0:00:47]} 81. Kg1 {[%emt 0:00:00]} Rf3 {[%emt 0:00:14] Quite a comeback for Black.   Weighted Error Value: White=0.56/Black=0.40.  Loses game:     	---       	Black=1      Missed win:     	White=2     	---        Mistake:       	White=12    	Black=5      Inaccurate:     	White=3     	Black=1      OK:         	White=7     	Black=21     Best:        	White=2     	Black=4      Strong:       	White=2     	Black=1} 0-1

[Event "Israel-ch Youth U8-18 2024"]
[Site "Kfar Saba"]
[Date "2024.04.17"]
[Round "2.4"]
[White "Uritsky, Yonathan"]
[Black "Ostrovsky Berman, Noam"]
[Result "1/2-1/2"]
[ECO "A24"]
[WhiteElo "2231"]
[BlackElo "1990"]
[Annotator "TA"]
[PlyCount "65"]
[EventDate "2024.04.10"]
[EventType "swiss"]
[EventCountry "ISR"]
[SourceTitle "playchess.com"]
[Source "ChessBase"]
[SourceQuality "1"]
[TimeControl "5400+30"]

{[%evp 21,65,3,21,2,0,-10,16,0,-6,-8,0,0,0,0,-6,0,0,-20,-9,-22,-27,-47,-8,-76,0,0,0,0,0,0,0,-16,-21,-12,-14,-20,-13,-5,0,-1,-4,-8,-8,-74,0,0]} 1. Nf3 {[%emt 0:00:16]} Nf6 {[%emt 0:00:07]} 2. g3 {[%emt 0:00:05]} g6 {[%emt 0:00:05]} 3. Bg2 {[%emt 0:00:04]} Bg7 {[%emt 0:00:06]} 4. O-O {[%emt 0:00:08]} O-O {[%emt 0:00:06]} 5. c4 {[%emt 0:00:03]} d6 {[%emt 0:00:55]} 6. Nc3 {[%emt 0:00:17]} c6 {[%emt 0:00:50]} 7. d3 {[%emt 0:00:09]} a5 {[%emt 0:01:02]} 8. Rb1 {[%emt 0:01:45]} e5 {[%emt 0:00:09]} 9. a3 {[%emt 0:02:39]} Nbd7 {[%emt 0:00:49]} 10. b4 {[%emt 0:01:17]} axb4 {[%emt 0:00:52]} 11. axb4 {[%emt 0:00:37]} d5 {[%emt 0:00:06]} 12. Qc2 {[%emt 0:09:44]} Re8 {[%emt 0:03:57]} 13. e4 {[%emt 0:10:56]} Nf8 {[%emt 0:14:26]} 14. Bg5 {[%emt 0:03:52]} dxc4 {[%emt 0:01:55]} 15. dxc4 {[%emt 0:00:21]} Bg4 {[%emt 0:15:51]} 16. Be3 {[%emt 0:01:39]} Bxf3 {[%emt 0:03:52]} 17. Bxf3 {[%emt 0:00:03]} Ne6 {[%emt 0:00:10]} 18. Rfd1 {[%emt 0:06:16]} Qe7 {[%emt 0:01:10]} 19. Ne2 {[%emt 0:09:10]} Red8 {[%emt 0:03:57]} 20. Qb2 {[%emt 0:02:40]} h5 {[%emt 0:05:05]} 21. c5 {[%emt 0:06:39]} Ne8 {[%emt 0:08:24]} 22. b5 {[%emt 0:06:19]} (22. Bg2 $11 {remains equal.}) 22... Nxc5 {[%emt 0:10:40]} ({Better is} 22... Nf6 $17) 23. Rxd8 {[%emt 0:04:22]} Rxd8 {[%emt 0:00:05]} 24. Qa3 {[%emt 0:01:51]} Bf8 {[%emt 0:00:20]} 25. bxc6 {[%emt 0:01:48]} bxc6 {[%emt 0:00:07]} 26. Bxc5 {[%emt 0:01:28]} Qxc5 {[%emt 0:00:06]} 27. Qxc5 {[%emt 0:00:05]} Bxc5 {[%emt 0:00:03]} 28. Rc1 {[%emt 0:00:09]} Bb4 {[%emt 0:03:58]} 29. Rxc6 {[%emt 0:00:13]} Kg7 {[%emt 0:00:17]} 30. Nc1 {[%emt 0:02:09]} Rd6 {[%emt 0:01:37]} 31. Rc4 {[%emt 0:01:55]} Ba3 {[%emt 0:05:34]} 32. Na2 {[%emt 0:00:02] [#]} (32. Rc2 $11) 32... Rd3 {[%emt 0:00:34]} (32... Rd2 $1 $17 {[%cal Rd2a2]} 33. Nc3 Rc2) 33. Rc3 {[%emt 0:00:23] Weighted Error Value: White=0.19 (very precise) /Black=0.13 (very precise) .  Mistake:       	White=2     	Black=2      Inaccurate:     	---       	Black=2      OK:         	White=3     	Black=7      Best:        	White=3     	---} 1/2-1/2

[Event "Israel-ch Youth U8-18 2024"]
[Site "Kfar Saba"]
[Date "2024.04.17"]
[Round "2.5"]
[White "Brezis, Ari"]
[Black "Menahem, Adi"]
[Result "1/2-1/2"]
[ECO "E49"]
[WhiteElo "1877"]
[BlackElo "2112"]
[Annotator "TA"]
[PlyCount "79"]
[EventDate "2024.04.10"]
[EventType "swiss"]
[EventCountry "ISR"]
[SourceTitle "playchess.com"]
[Source "ChessBase"]
[SourceQuality "1"]
[TimeControl "5400+30"]

{[%evp 25,79,8,12,8,35,31,39,41,44,8,53,54,61,0,35,35,112,58,164,55,75,50,54,54,233,51,61,62,49,36,35,47,56,16,11,15,11,15,50,43,69,67,71,29,45,17,25,5,8,1,2,2,2,2,5,0]} 1. d4 {[%emt 0:00:14]} Nf6 {[%emt 0:00:23]} 2. c4 {[%emt 0:00:08]} e6 {[%emt 0:00:18]} 3. Nc3 {[%emt 0:00:11]} Bb4 {[%emt 0:00:34]} 4. a3 {[%emt 0:00:08]} Bxc3+ {[%emt 0:01:41]} 5. bxc3 {[%emt 0:00:08]} d5 {[%emt 0:01:59]} 6. cxd5 {[%emt 0:00:05]} exd5 {[%emt 0:00:34]} 7. e3 {[%emt 0:00:20]} c5 {[%emt 0:03:26]} 8. Bd3 {[%emt 0:00:09]} Nc6 {[%emt 0:01:10]} 9. Ne2 {[%emt 0:00:13][%cal Bg1e2,Be2g3,Bg3h1,Bh1f2][%mdl 32]} O-O {[%emt 0:01:00]} 10. O-O {[%emt 1:33:54]} Re8 {[%emt 0:02:10]} 11. f3 {[%emt 0:00:00]} b6 {[%emt 0:06:01]} 12. Ng3 {[%emt 0:00:00]} Bb7 {[%emt 0:01:55]} 13. Ra2 {[%emt 0:00:00]} Qc7 {[%emt 0:07:51]} 14. Re2 {[%emt 0:00:00]} h5 {[%emt 0:03:34]} 15. Bb2 {[%emt 0:00:00]} g6 {[%emt 0:06:30]} 16. Nh1 {[%emt 0:00:00] White is slightly better.} Na5 {[%emt 0:12:12]} 17. Qe1 {[%emt 0:00:00]} cxd4 {[%emt 0:06:13]} 18. cxd4 {[%emt 0:00:00]} Nc4 {[%emt 0:00:52]} 19. Bc1 {[%emt 0:00:00]} ({Better is} 19. Ba1 $1 $14) 19... Nd6 {[%emt 0:02:37]} 20. Nf2 {[%emt 0:00:00]} Qe7 {[%emt 0:01:22]} (20... Qc6 $14) 21. a4 {[%emt 0:00:00]} (21. e4 $1 $16 Nh7 (21... dxe4 22. fxe4 Nfxe4 23. Nxe4 $16) 22. Qb4 (22. e5 Nf5 $16)) 21... Bc6 {[%emt 0:03:52] [#]} (21... Rac8 $14) 22. Ba3 {[%emt 0:00:00]} (22. e4 $1 $18 {[%cal Re4d5]} dxe4 (22... Bxa4 $2 23. Bg5 $18) 23. fxe4) 22... Qd7 $14 {[%emt 0:06:02]} 23. e4 {[%emt 0:00:00]} dxe4 {[%emt 0:01:22]} 24. fxe4 {[%emt 0:00:00]} Nfxe4 $2 {[%emt 0:03:17] [#]} 25. Bxe4 $2 {[%emt 0:00:00]} (25. d5 $1 $18 {[%cal Rd5c6]} Bxd5 26. Nxe4 Bxe4 27. Bxe4 Nxe4 28. Rxe4 Rxe4 29. Qxe4) 25... Nxe4 {[%emt 0:00:09]} 26. Nxe4 {[%emt 0:00:00] Threatening mate with Nf6+.} Qxd4+ {[%emt 0:00:13]} 27. Nf2 {[%emt 0:00:00]} Rxe2 {[%emt 0:01:40]} 28. Qxe2 {[%emt 0:00:00]} Re8 {[%emt 0:00:03]} 29. Qd3 {[%emt 0:00:00]} Qxd3 {[%emt 0:02:06]} 30. Nxd3 {[%emt 0:00:00]} Re3 {[%emt 0:00:41]} 31. Rd1 {[%emt 0:00:00]} Bxa4 {[%emt 0:02:38]} 32. Kf2 {[%emt 0:00:00]} Bxd1 {[%emt 0:01:12]} 33. Kxe3 {[%emt 0:00:00]} f6 {[%emt 0:00:41]} 34. Bb2 {[%emt 0:00:00]} Kf7 {[%emt 0:01:17]} 35. Bd4 {[%emt 0:00:00]} Bb3 {[%emt 0:00:57]} 36. Nf4 {[%emt 0:00:00]} h4 $1 {[%emt 0:05:03] The position is equal.} 37. g4 {[%emt 0:00:00]} hxg3 {[%emt 0:00:44]} 38. hxg3 {[%emt 0:14:00]} g5 {[%emt 0:02:22]} 39. Nd3 {[%emt 0:00:00]} Ke6 {[%emt 0:00:44]} 40. Nb4 {[%emt 0:01:00] Weighted Error Value: White=0.38/Black=0.25 (precise) .  Loses game:     	---       	Black=1      Missed win:     	White=1     	---        Mistake:       	White=3     	Black=2      Inaccurate:     	White=4     	Black=5      OK:         	White=5     	Black=9      Best:        	White=1     	Black=3      Strong:       	---       	Black=1} 1/2-1/2

[Event "Israel-ch Youth U8-18 2024"]
[Site "Kfar Saba"]
[Date "2024.04.17"]
[Round "2.6"]
[White "Dezent, Eyal"]
[Black "Meirovich, Ilay"]
[Result "0-1"]
[ECO "D00"]
[WhiteElo "2145"]
[BlackElo "1880"]
[Annotator "TA"]
[PlyCount "50"]
[EventDate "2024.04.10"]
[EventType "swiss"]
[EventCountry "ISR"]
[SourceTitle "playchess.com"]
[Source "ChessBase"]
[SourceQuality "1"]
[TimeControl "5400+30"]

{[%evp 9,50,3,-10,-13,-10,-17,6,11,14,22,16,4,10,10,35,39,22,-14,-21,-52,0,-34,-34,-96,-84,-82,-74,-490,-304,-437,-415,-541,-526,-576,-569,-503,-477,-729,-731,-29983,-29984,-29979,-1033]} 1. d4 {[%emt 0:00:02]} d5 {[%emt 0:00:04]} 2. Bf4 {[%emt 0:00:51]} Nf6 {[%emt 0:00:05]} 3. e3 {[%emt 0:00:24]} c5 {[%emt 0:00:04]} 4. c3 {[%emt 0:01:00]} Nc6 {[%emt 0:00:06]} 5. Nd2 {[%emt 0:00:13]} Bf5 {[%emt 0:00:05]} 6. a4 {[%emt 0:02:31]} e6 {[%emt 0:11:08]} 7. Ngf3 {[%emt 0:00:21]} Bd6 {[%emt 0:01:46]} 8. dxc5 {[%emt 0:01:20] The position is equal.} Bxf4 {[%emt 0:00:16]} 9. exf4 {[%emt 0:00:08]} Qc7 {[%emt 0:01:04]} 10. g3 {[%emt 0:09:39]} O-O $1 {[%emt 0:01:50]} 11. Be2 {[%emt 0:02:53]} Rad8 {[%emt 0:23:53]} 12. Nb3 {[%emt 1:17:08]} Bh3 {[%emt 0:01:39]} 13. Nbd4 {[%emt 0:00:00]} Ne4 {[%emt 0:02:53]} 14. Nxc6 {[%emt 0:00:00]} Qxc6 {[%emt 0:00:36]} (14... bxc6 $15 15. Qd4 a5 (15... Bg2 16. Rg1 $14)) 15. b4 {[%emt 0:00:00]} Nxc3 {[%emt 0:09:52]} 16. Qd4 {[%emt 0:00:00]} ({Better is} 16. Nd4 $1 $15 Qe8 17. Qd3 Nxe2 (17... Nxa4 $2 18. g4 $18) 18. Qxe2) 16... Nxe2 $17 {[%emt 0:01:25]} ({Weaker is} 16... Nxa4 17. b5 Qxc5 18. Rxa4 $18) 17. Kxe2 {[%emt 0:00:00]} f6 {[%emt 0:00:40][%cal Oe6e5]} 18. Qe3 {[%emt 0:00:00][%mdl 8192] White does not recover from this.} (18. Ra3 $17) 18... e5 {[%emt 0:02:30] [#] Hoping for ...d4.} 19. fxe5 {[%emt 0:00:00]} (19. Nd2 $142) 19... Bg4 {[%emt 0:00:07]} 20. Kd2 {[%emt 0:00:00]} Bxf3 {[%emt 0:00:13]} 21. Qxf3 {[%emt 0:04:30][%cal Oe5e6]} fxe5 {[%emt 0:00:10]} 22. Qe2 {[%emt 0:00:00]} e4 {[%emt 0:04:08]} 23. Rhf1 {[%emt 0:00:00]} (23. Kc1 $142 d4 24. Rg1) 23... Rf3 $19 {[%emt 0:00:45] [#] ...Qf6 would now be deadly.} 24. Qb5 {[%emt 0:00:00]} Qf6 {[%emt 0:00:36]} 25. Rac1 {[%emt 0:00:00]} Rd3+ {[%emt 0:00:55] Weighted Error Value: White=1.02/Black=0.17 (very precise) .  Loses game:     	White=1     	---        Mistake:       	White=3     	Black=1      Inaccurate:     	White=5     	Black=1      OK:         	White=4     	Black=8      Best:        	White=1     	Black=2      Strong:       	---       	Black=1} (25... Ra3 $142 26. Rc2 a6 27. Rd1 axb5 28. Ke1 Qf3 (28... Rxa4 $2 29. g4 $19) 29. axb5 Rf8 (29... d4 {leads to mate.} 30. Re2 Qh1+ 31. Kd2 Rd3+ 32. Kc2 Qxd1+ 33. Kb2 Qxe2+ 34. Kc1 Rd1#) 30. Re2 Qh1+ 31. Kd2 Rd3+ (31... Qxh2 {gets mated.} 32. Rf1 Rff3 33. Kd1 Ra1+ 34. Kc2 Rxf1 35. c6 R1xf2 36. Rxf2 Qxf2+ 37. Kc1 Rxg3 38. cxb7 Rg1#) 32. Kc2 Qxd1+ 33. Kb2 Qxe2+ 34. Kc1 Rd1#) 0-1

[Event "Israel-ch Youth U8-18 2024"]
[Site "Kfar Saba"]
[Date "2024.04.17"]
[Round "2.7"]
[White "David, Idan"]
[Black "Shefer, Uri"]
[Result "1/2-1/2"]
[ECO "D02"]
[WhiteElo "1889"]
[BlackElo "1991"]
[Annotator "TA"]
[PlyCount "81"]
[EventDate "2024.04.10"]
[EventType "swiss"]
[EventCountry "ISR"]
[SourceTitle "playchess.com"]
[Source "ChessBase"]
[SourceQuality "1"]
[TimeControl "5400+30"]

{[%evp 9,81,8,14,10,14,15,24,0,5,0,0,-8,-17,-9,-8,-17,-20,-14,0,0,0,0,0,0,-2,-5,0,0,21,-4,34,33,33,33,33,33,33,33,35,33,48,26,41,41,47,26,26,26,27,17,26,26,26,26,26,26,26,26,55,26,25,25,25,25,25,25,25,25,25,0,25,0,25,0]} 1. d4 {[%emt 0:00:01]} Nf6 {[%emt 0:00:03]} 2. Bf4 {[%emt 0:00:05]} d5 {[%emt 0:00:03]} 3. e3 {[%emt 0:00:04]} c5 {[%emt 0:00:13]} 4. Nf3 {[%emt 0:00:13]} Nc6 {[%emt 0:00:04]} 5. Nbd2 {[%emt 0:00:04]} cxd4 {[%emt 0:00:24]} 6. exd4 {[%emt 0:00:16]} a6 {[%emt 0:00:03]} 7. c3 {[%emt 0:00:13]} Bf5 {[%emt 0:00:16]} 8. h3 {[%emt 0:01:28]} h6 {[%emt 0:01:11]} 9. Be2 {[%emt 0:04:17]} e6 {[%emt 0:00:42]} 10. Ne5 {[%emt 0:01:21]} Bd6 {[%emt 0:05:16]} 11. Ndf3 {[%emt 0:06:48][%cal Bd2f3,Bf3h2,Bh2g4,Bg4e3][%mdl 32]} Qc7 {[%emt 0:03:11]} 12. Bh2 {[%emt 0:01:16]} O-O {[%emt 0:04:47]} 13. O-O {[%emt 0:03:11]} Nd7 {[%emt 0:02:38]} 14. Nxd7 {[%emt 0:01:21]} Bxh2+ {[%emt 0:00:33]} 15. Nxh2 {[%emt 0:00:06]} Qxd7 {[%emt 0:00:05]} 16. Bd3 {[%emt 0:00:50]} Bxd3 {[%emt 0:01:53]} 17. Qxd3 {[%emt 0:00:02]} Na5 {[%emt 0:02:58]} 18. Ng4 {[%emt 0:01:54]} Rac8 {[%emt 0:05:36]} 19. Rfe1 {[%emt 0:08:39]} Qb5 {[%emt 0:03:03]} 20. Qxb5 {[%emt 0:02:50]} axb5 {[%emt 0:00:05]} 21. a3 {[%emt 0:03:10]} Nc4 {[%emt 0:04:31]} 22. Re2 {[%emt 0:01:00]} Rc7 {[%emt 0:02:08]} 23. Ne3 {[%emt 0:00:38]} Ra8 {[%emt 0:00:55]} 24. Rb1 {[%emt 0:01:14]} Ra6 {[%emt 0:01:26]} 25. Nc2 {[%emt 0:00:59]} Kf8 {[%emt 0:00:55]} 26. Nb4 {[%emt 0:00:18]} Rd6 {[%emt 0:00:55]} 27. Rd1 {[%emt 0:04:31]} Rd8 {[%emt 0:02:54]} 28. Rd3 {[%emt 0:02:44]} Nd6 {[%emt 0:01:48]} 29. g3 {[%emt 0:02:55]} Ne4 {[%emt 0:01:28]} 30. Kg2 {[%emt 0:00:17]} g6 {[%emt 0:02:32]} 31. Rd1 {[%emt 0:03:00]} Kg7 {[%emt 0:04:23]} 32. f3 {[%emt 0:02:41]} Nd6 {[%emt 0:01:07]} 33. Rde1 {[%emt 0:02:08]} Nf5 {[%emt 0:05:09]} 34. Kf2 {[%emt 0:01:18]} h5 {[%emt 0:01:09]} 35. h4 {[%emt 0:00:10]} Kf6 {[%emt 0:01:26]} 36. Nd3 {[%emt 0:01:14]} Rh8 {[%emt 0:09:35]} 37. Nf4 {[%emt 0:03:17]} Rh6 {[%emt 0:01:22]} 38. Nh3 {[%emt 0:00:30]} Rh8 {[%emt 0:00:54]} 39. Nf4 {[%emt 0:00:52]} Rh6 {[%emt 0:01:17]} 40. Nh3 {[%emt 0:00:02]} Rh8 {[%emt 0:00:05]} 41. Nf4 {[%emt 0:01:57] Weighted Error Value: White=0.06 (flawless) /Black=0.05 (flawless) .  Inaccurate:     	White=1     	Black=2      OK:         	White=11    	Black=17} 1/2-1/2